bitfinex-derivatives/quotes_BNBF0:USTF0_20250904
["timestamp","ask_amount","ask_price","bid_price","bid_amount"]
[1756949457850,0.20346237,855.42,855.01,0.70625339]
[1756949458051,0.20346237,855.42,855.02,0.70625339]
[1756949458251,0.20346237,855.42,855.03,0.70625339]
[1756949458455,0.20346237,855.42,855.04,0.70625339]
[1756949458652,0.20346237,855.42,855.05,0.70625339]
[1756949458855,0.20346237,855.42,855.06,0.70625339]
[1756949459053,0.20346237,855.42,855.07,0.70625339]
[1756949459252,0.20346237,855.42,854.86,0.7879189]
[1756949459253,0.20346237,855.42,855.08,0.70625339]
[1756949459553,0.20346237,855.42,855.09,0.70625339]
[1756949459757,0.20346237,855.42,855.1,0.70625339]
[1756949459953,0.20346237,855.42,855.11,0.70625339]
[1756949460157,0.20346237,855.42,855.12,0.70625339]
[1756949460358,0.20346237,855.42,855.13,0.70625339]
[1756949460558,0.20346237,855.42,855.14,0.70625339]
[1756949460758,0.20346237,855.42,854.85,0.7879189]
[1756949461057,0.20346237,855.42,855.15,1.348]
[1756949463156,0.20346237,855.42,855.15,2.273]
[1756949464260,0.20346237,855.42,855.16,0.70564713]
[1756949464557,0.20346237,855.42,855.17,0.70564713]
[1756949464760,0.20346237,855.42,855.15,2.273]
[1756949465058,0.20346237,855.42,855.16,0.70564713]
[1756949465260,0.20346237,855.42,855.17,0.70564713]
[1756949465561,0.20346237,855.42,855.15,2.273]
[1756949465756,0.20346237,855.42,855.16,0.70557725]
[1756949465961,0.20346237,855.42,855.17,0.70557725]
[1756949466159,0.20346237,855.42,855.15,2.273]
[1756949466357,0.20346237,855.42,855.16,0.7055107]
[1756949466561,0.20346237,855.42,855.17,0.7055107]
[1756949466759,0.20346237,855.42,855.15,2.273]
[1756949466957,0.20346237,855.42,855.16,0.7055107]
[1756949467162,0.20346237,855.42,855.15,2.273]
[1756949467358,0.20346237,855.42,855.16,0.70544727]
[1756949467662,0.20346237,855.42,855.15,2.273]
[1756949467958,0.20346237,855.42,855.16,0.70544727]
[1756949468160,0.20346237,855.42,855.15,2.273]
[1756949468361,0.20346237,855.42,855.16,0.70538676]
[1756949468562,0.20346237,855.42,855.15,2.273]
[1756949468762,0.20346237,855.42,855.16,0.70538676]
[1756949468960,0.20346237,855.42,855.15,2.273]
[1756949469162,0.20346237,855.42,855.16,0.70538676]
[1756949469360,0.20346237,855.42,855.15,2.273]
[1756949485174,0.20346237,855.42,855.15,1.348]
[1756949488579,0.20346237,855.42,855.16,1.088]
[1756949491882,0.20346237,855.42,855.17,1.172]
[1756949509901,0.20346237,855.42,855.16,1.088]
[1756949510798,0.20346237,855.42,855.17,0.70752284]
[1756949511001,0.20346237,855.42,855.18,0.70752284]
[1756949511200,0.20346237,855.42,855.19,0.70752284]
[1756949511397,0.20346237,855.42,855.2,0.70752284]
[1756949511598,0.20346237,855.42,855.21,0.70752284]
[1756949511901,0.20346237,855.42,855.16,1.088]
[1756949512197,0.20346237,855.42,855.17,0.70752609]
[1756949512402,0.20346237,855.42,855.18,0.70752609]
[1756949512704,0.20346237,855.42,855.19,0.70752609]
[1756949512899,0.20346237,855.42,855.2,0.70752609]
[1756949513100,0.20346237,855.42,855.21,0.70752609]
[1756949513301,0.20346237,855.42,855.16,1.088]
[1756949513601,0.20346237,855.42,855.17,0.7075559]
[1756949513800,0.20346237,855.42,855.18,0.7075559]
[1756949514101,0.20346237,855.42,855.19,0.7075559]
[1756949514301,0.20346237,855.42,855.2,0.7075559]
[1756949514500,0.20346237,855.42,855.21,0.7075559]
[1756949514700,0.20346237,855.42,855.17,1.286]
[1756949514900,0.20346237,855.42,855.18,0.70757119]
[1756949515202,0.20346237,855.42,855.19,0.70757119]
[1756949515406,0.20346237,855.42,855.2,0.70757119]
[1756949515603,0.20346237,855.42,855.21,0.70757119]
[1756949515903,0.20346237,855.42,855.22,0.70757119]
[1756949516102,0.20346237,855.42,855.17,1.286]
[1756949516301,0.20346237,855.42,855.18,0.70758481]
[1756949516505,0.20346237,855.42,855.19,0.70758481]
[1756949516702,0.20346237,855.42,855.2,0.70758481]
[1756949516905,0.20346237,855.42,855.21,0.70758481]
[1756949517104,0.20346237,855.42,855.22,0.70758481]
[1756949517307,0.20346237,855.42,855.17,1.286]
[1756949517504,0.20346237,855.42,855.18,0.70759474]
[1756949517707,0.20346237,855.42,855.19,0.70759474]
[1756949517908,0.20346237,855.42,855.2,0.70759474]
[1756949518108,0.20346237,855.42,855.21,0.70759474]
[1756949518308,0.20346237,855.42,855.17,1.286]
[1756949518508,0.20346237,855.42,855.18,0.70760953]
[1756949518705,0.20346237,855.42,855.19,0.70760953]
[1756949518904,0.20346237,855.42,855.2,0.70760953]
[1756949519207,0.20346237,855.42,855.17,1.286]
[1756949519407,0.20346237,855.42,855.18,0.70762452]
[1756949519604,0.20346237,855.42,855.19,0.70762452]
[1756949519804,0.20346237,855.42,855.2,0.70762452]
[1756949520002,0.20346237,855.42,855.21,0.70762452]
[1756949520206,0.20346237,855.42,855.17,1.286]
[1756949520207,0.20346237,855.42,855.22,0.70762452]
[1756949520407,0.20346237,855.42,855.23,0.70762452]
[1756949520610,0.20346237,855.42,855.24,0.70762452]
[1756949520809,0.20346237,855.42,855.25,0.70762452]
[1756949521104,0.20346237,855.42,855.17,1.286]
[1756949521307,0.20346237,855.42,855.18,0.70758856]
[1756949521505,0.20346237,855.42,855.19,0.70758856]
[1756949521709,0.20346237,855.42,855.2,0.70758856]
[1756949521908,0.20346237,855.42,855.21,0.70758856]
[1756949522108,0.20346237,855.42,855.22,0.70758856]
[1756949522306,0.20346237,855.42,855.23,0.70758856]
[1756949522511,0.20346237,855.42,855.24,0.70758856]
[1756949522709,0.20346237,855.42,855.25,0.70758856]
[1756949522908,0.20346237,855.42,854.96,0.78589736]
[1756949523109,0.20346237,855.42,854.97,0.70755681]
[1756949523413,0.20346237,855.42,854.98,0.70755681]
[1756949523607,0.20346237,855.42,854.79,1.0463233]
[1756949523608,0.20346237,855.42,854.99,0.70755681]
[1756949523809,0.20346237,855.42,855.0,0.70755681]
[1756949524013,0.20346237,855.42,855.01,0.70755681]
[1756949524215,0.20346237,855.42,855.02,0.70755681]
[1756949524513,0.20346237,855.42,855.03,0.70755681]
[1756949524710,0.20346237,855.42,855.04,0.70755681]
[1756949524912,0.20346237,855.42,855.05,0.70755681]
[1756949525118,0.20346237,855.42,855.06,0.70755681]
[1756949525312,0.20346237,855.42,855.07,0.70755681]
[1756949525616,0.20346237,855.42,855.08,0.70755681]
[1756949525915,0.20346237,855.42,855.09,0.70755681]
[1756949526116,0.20346237,855.42,855.1,0.70755681]
[1756949526316,0.20346237,855.42,855.11,0.70755681]
[1756949526613,0.20346237,855.42,855.12,0.70755681]
[1756949526814,0.20346237,855.42,855.13,0.70755681]
[1756949527017,0.20346237,855.42,855.14,0.70755681]
[1756949527216,0.20346237,855.42,855.15,0.70755681]
[1756949527416,0.20346237,855.42,855.16,0.70755681]
[1756949527620,0.20346237,855.42,855.17,0.70755681]
[1756949527920,0.20346237,855.42,855.18,0.70755681]
[1756949528216,0.20346237,855.42,855.06,1.339]
[1756949528217,0.20346237,855.42,855.19,0.70755681]
[1756949528516,0.20346237,855.42,855.2,0.70755681]
[1756949528720,0.20346237,855.42,855.21,0.70755681]
[1756949528915,0.20346237,855.42,855.22,0.70755681]
[1756949529119,0.20346237,855.42,855.23,0.70755681]
[1756949529319,0.20346237,855.42,855.24,0.70755681]
[1756949529519,0.20346237,855.42,855.25,0.70755681]
[1756949529718,0.20346237,855.42,855.26,0.70755681]
[1756949529918,0.20346237,855.42,855.27,0.70755681]
[1756949530117,0.20346237,855.42,855.28,0.70755681]
[1756949530418,0.20346237,855.42,855.29,0.70755681]
[1756949530621,0.20346237,855.42,855.3,0.70755681]
[1756949530818,0.20346237,855.42,855.31,0.70755681]
[1756949531018,0.20346237,855.42,855.32,0.70755681]
[1756949531221,0.20346237,855.42,855.06,1.339]
[1756949531418,0.20346237,855.42,855.07,0.70714728]
[1756949531622,0.20346237,855.42,855.08,0.70714728]
[1756949531921,0.20346237,855.42,855.09,0.70714728]
[1756949532223,1.5701915,856.14,855.1,0.70714728]
[1756949532417,0.20335893,855.68,855.11,1.49304464]
[1756949532622,1.5701915,856.18,855.12,0.70714728]
[1756949532921,0.20335002,855.89,855.18,0.78589736]
[1756949533122,0.20335002,855.89,855.19,0.70714728]
[1756949533417,0.20335002,855.89,855.2,0.70714728]
[1756949533620,0.20335002,855.89,855.21,0.70714728]
[1756949533818,0.20335002,855.89,855.22,0.70714728]
[1756949534118,0.20335002,855.89,855.23,0.70714728]
[1756949534317,0.20335002,855.89,855.24,0.70714728]
[1756949534521,0.20335002,855.89,855.25,0.70714728]
[1756949534721,0.20335002,855.89,855.26,0.70714728]
[1756949534924,0.20335002,855.89,855.27,0.70714728]
[1756949535224,0.20335002,855.89,855.28,0.70714728]
[1756949535522,0.20335002,855.89,855.29,0.70714728]
[1756949535719,0.20335002,855.89,855.3,0.70714728]
[1756949536019,0.20335002,855.89,855.31,0.70714728]
[1756949536320,0.20335002,855.89,855.32,0.70714728]
[1756949536518,0.20335002,855.89,855.33,0.70714728]
[1756949536721,0.20335002,855.89,855.34,0.70714728]
[1756949536918,0.20335002,855.89,855.35,0.70714728]
[1756949537222,0.20335002,855.89,855.36,0.70714728]
[1756949537519,0.20335002,855.89,855.37,0.70714728]
[1756949537722,0.20335002,855.89,855.38,0.70714728]
[1756949538018,0.20335002,855.89,855.39,0.70714728]
[1756949538222,0.20335002,855.89,855.4,0.70714728]
[1756949538423,0.20335002,855.89,855.41,0.70714728]
[1756949538621,0.20335002,855.89,855.12,0.78589736]
[1756949538817,0.20335002,855.89,855.13,0.71184913]
[1756949539021,0.20335002,855.89,855.14,0.71184913]
[1756949539220,0.20335002,855.89,855.15,0.71184913]
[1756949539421,0.20335002,855.89,855.16,0.71184913]
[1756949539622,0.20335002,855.89,855.17,0.71184913]
[1756949539825,0.20335002,855.89,855.18,0.71184913]
[1756949540020,0.20335002,855.89,855.19,0.71184913]
[1756949540228,0.20335002,855.89,855.2,0.71184913]
[1756949540522,0.20335002,855.89,855.21,0.71184913]
[1756949540725,0.20335002,855.89,855.22,0.71184913]
[1756949541021,0.20335002,855.89,855.23,0.71184913]
[1756949541222,0.20335002,855.89,855.24,2.01984913]
[1756949541423,0.20335002,855.89,855.25,0.71184913]
[1756949541620,0.20335002,855.89,855.26,0.71184913]
[1756949541822,0.20335002,855.89,855.27,0.71184913]
[1756949542025,0.20335002,855.89,855.28,0.71184913]
[1756949542225,0.20335002,855.89,855.29,0.71184913]
[1756949542522,0.20335002,855.89,855.3,0.71184913]
[1756949542721,0.20335002,855.89,855.31,0.71184913]
[1756949542925,0.20335002,855.89,855.32,0.71184913]
[1756949543225,0.20335002,855.89,855.33,0.71184913]
[1756949543521,0.20335002,855.89,855.34,0.71184913]
[1756949543722,0.20335002,855.89,855.35,0.71184913]
[1756949543922,0.20335002,855.89,855.36,0.71184913]
[1756949544122,0.20335002,855.89,855.37,0.71184913]
[1756949544424,0.20335002,855.89,855.24,1.308]
[1756949544425,0.20335002,855.89,855.38,0.71184913]
[1756949544625,0.20335002,855.89,855.39,0.71184913]
[1756949544824,0.20335002,855.89,855.4,0.71184913]
[1756949545023,0.20335002,855.89,855.41,0.71184913]
[1756949545224,0.20335002,855.89,855.42,0.71184913]
[1756949545425,0.20335002,855.89,855.43,0.71184913]
[1756949545626,0.20335002,855.89,855.44,0.71184913]
[1756949545826,0.20335002,855.89,855.45,0.71184913]
[1756949546027,0.20335002,855.89,855.46,0.71184913]
[1756949546224,0.20335002,855.89,855.47,0.71184913]
[1756949546523,0.20335002,855.89,855.48,0.71184913]
[1756949546823,0.20335002,855.89,855.49,0.71184913]
[1756949547022,0.20335002,855.89,855.5,0.71184913]
[1756949547327,0.20335002,855.89,855.51,0.71184913]
[1756949547626,0.20335002,855.89,855.52,0.71184913]
[1756949547826,0.20335002,855.89,855.53,0.71184913]
[1756949548126,0.20335002,855.89,855.54,0.71184913]
[1756949548326,0.20335002,855.89,855.55,0.71184913]
[1756949548527,0.20335002,855.89,855.56,0.71184913]
[1756949548726,0.20335002,855.89,855.57,0.71184913]
[1756949549026,0.20335002,855.89,855.58,0.71184913]
[1756949549224,0.20335002,855.89,855.59,0.71184913]
[1756949549427,0.20335002,855.89,855.6,0.71184913]
[1756949549627,0.20335002,855.89,855.61,0.71184913]
[1756949549926,0.20335002,855.89,855.62,0.71184913]
[1756949550122,0.20335002,855.89,855.32,0.78589736]
[1756949550426,0.20335002,855.89,855.33,0.71007891]
[1756949550726,0.20335002,855.89,855.34,0.71007891]
[1756949550926,0.20335002,855.89,855.35,0.71007891]
[1756949551122,0.20335002,855.89,855.36,0.71007891]
[1756949551327,0.20335002,855.89,855.37,0.71007891]
[1756949551529,0.20335002,855.89,855.38,0.71007891]
[1756949551729,0.20335002,855.89,855.39,0.71007891]
[1756949551928,0.20335002,855.89,855.4,0.71007891]
[1756949552225,0.20335002,855.89,855.41,0.71007891]
[1756949552424,0.20335002,855.89,855.24,1.308]
[1756949552425,0.20335002,855.89,855.42,0.71007891]
[1756949552628,0.20335002,855.89,855.43,0.71007891]
[1756949552924,0.20335002,855.89,855.44,0.71007891]
[1756949553126,0.20335002,855.89,855.45,0.71007891]
[1756949553325,0.20335002,855.89,855.46,0.71007891]
[1756949553523,0.20335002,855.89,855.47,0.71007891]
[1756949553727,0.20335002,855.89,855.48,0.71007891]
[1756949553923,0.20335002,855.89,855.49,0.71007891]
[1756949554126,0.20335002,855.89,855.5,0.71007891]
[1756949554325,0.20335002,855.89,855.51,0.71007891]
[1756949554524,0.20335002,855.89,855.52,0.71007891]
[1756949554723,0.20335002,855.89,855.53,0.71007891]
[1756949554926,0.20335002,855.89,855.54,0.71007891]
[1756949555123,0.20335002,855.89,855.55,0.71007891]
[1756949555428,0.20335002,855.89,855.56,0.71007891]
[1756949555626,0.20335002,855.89,855.57,0.71007891]
[1756949555925,2.6281651,857.73,855.58,0.71007891]
[1756949556130,0.20319447,856.02,855.59,0.71007891]
[1756949556328,2.6281651,857.83,855.6,0.71007891]
[1756949556531,0.20319329,856.02,855.61,0.71007891]
[1756949556730,0.20319329,856.02,855.62,0.71007891]
[1756949556931,2.6281651,857.89,855.63,0.71007891]
[1756949557129,2.6281651,857.89,855.64,0.71007891]
[1756949557327,2.6281651,857.89,855.65,0.71007891]
[1756949557527,2.6281651,857.89,855.66,0.71007891]
[1756949557729,2.6281651,857.91,855.67,0.71007891]
[1756949558027,0.20317787,857.36,855.68,0.71007891]
[1756949558232,0.20317787,857.36,855.69,0.71007891]
[1756949558531,0.20317787,857.36,855.7,0.71007891]
[1756949558729,0.20317787,857.36,855.71,0.71007891]
[1756949558926,0.20317787,857.36,855.72,0.71007891]
[1756949559129,0.20317787,857.36,855.73,0.71007891]
[1756949559330,0.20317787,857.36,855.74,0.71007891]
[1756949559530,0.20317787,857.36,855.75,0.71007891]
[1756949559831,0.20317787,857.36,855.76,0.71007891]
[1756949560132,0.20317787,857.36,855.77,0.71007891]
[1756949560332,0.20317787,857.36,855.78,0.71007891]
[1756949560535,0.20317787,857.36,855.79,0.71007891]
[1756949560735,0.20317787,857.36,855.8,0.71007891]
[1756949560937,0.20317787,857.36,855.73,1.362]
[1756949561136,0.20317787,857.36,855.74,0.70913235]
[1756949561437,0.20317787,857.36,855.75,0.70913235]
[1756949561736,0.20317787,857.36,855.76,0.70913235]
[1756949561936,0.20317787,857.36,855.77,0.70913235]
[1756949562136,0.20317787,857.36,855.78,0.70913235]
[1756949562336,0.20317787,857.36,855.79,0.70913235]
[1756949562533,0.20317787,857.36,855.8,0.70913235]
[1756949562731,0.20317787,857.36,855.73,1.362]
[1756949562935,0.20317787,857.36,855.74,0.7089993]
[1756949563134,0.20317787,857.36,855.75,0.7089993]
[1756949563438,0.20317787,857.36,855.76,0.7089993]
[1756949563635,0.20317787,857.36,855.77,0.7089993]
[1756949563833,0.20317787,857.36,855.78,0.7089993]
[1756949564038,0.20317787,857.36,855.79,0.7089993]
[1756949564335,0.20317787,857.36,855.73,1.362]
[1756949569640,2.6281651,857.34,855.73,1.362]
[1756949570141,2.6281651,857.32,855.73,1.362]
[1756949572346,2.6281651,857.33,855.73,1.362]
[1756949572847,2.6281651,857.32,855.73,1.362]
[1756949573345,2.6281651,857.31,855.73,1.362]
[1756949573840,0.20317787,857.36,855.73,1.362]
[1756949574446,2.6281651,857.3,855.73,1.362]
[1756949575343,2.6281651,857.3,855.13,0.78237305]
[1756949575546,2.6281651,857.3,855.21,0.71073972]
[1756949575746,2.6281651,857.3,855.22,0.71073972]
[1756949576046,2.6281651,857.29,855.23,0.71073972]
[1756949576244,2.6281651,857.29,855.24,0.71073972]
[1756949576443,0.20317787,857.36,855.25,0.71073972]
[1756949576646,0.20317787,857.36,855.26,0.71073972]
[1756949576847,0.20317787,857.36,855.27,0.71073972]
[1756949577048,0.20317787,857.36,855.28,0.71073972]
[1756949577249,0.20317787,857.36,855.29,0.71073972]
[1756949577449,0.20317787,857.36,855.3,0.71073972]
[1756949577651,0.20317787,857.36,855.31,0.71073972]
[1756949577845,0.20317787,857.36,855.32,0.71073972]
[1756949578045,0.20317787,857.36,855.33,0.71073972]
[1756949578250,0.20317787,857.36,855.34,0.71073972]
[1756949578545,0.20317787,857.36,855.35,0.71073972]
[1756949578752,0.20317787,857.36,855.36,0.71073972]
[1756949578948,0.20317787,857.36,855.37,0.71073972]
[1756949579251,0.20317787,857.36,855.38,0.71073972]
[1756949579449,0.20317787,857.36,855.39,0.71073972]
[1756949579650,0.20317787,857.36,855.4,0.71073972]
[1756949579850,0.20317787,857.36,855.41,0.71073972]
[1756949580152,0.20317787,857.36,855.42,0.71073972]
[1756949580350,0.20317787,857.36,855.36,1.224]
[1756949580750,2.6281651,857.17,855.36,1.224]
[1756949581649,0.20317787,857.36,855.36,1.224]
[1756949581650,2.6281651,857.02,855.36,1.224]
[1756949582253,2.6281651,857.0,855.37,1.212]
[1756949582757,2.6281651,856.99,855.37,1.212]
[1756949583255,2.6281651,856.97,855.37,1.212]
[1756949584254,2.6281651,856.95,855.37,1.212]
[1756949584453,2.6281651,856.95,855.38,0.71186175]
[1756949584658,2.6281651,856.95,855.39,0.71186175]
[1756949584958,2.6281651,857.15,855.4,0.71186175]
[1756949585153,2.6281651,857.15,855.41,0.71186175]
[1756949585458,2.6281651,857.26,855.42,0.71186175]
[1756949585660,2.6281651,857.26,855.43,0.71186175]
[1756949585854,2.6281651,857.26,855.44,0.71186175]
[1756949586054,2.6281651,857.26,855.37,1.212]
[1756949586055,2.6281651,857.26,855.45,0.71186175]
[1756949586354,2.6281651,857.24,855.46,0.71186175]
[1756949586556,2.6281651,857.24,855.47,0.71186175]
[1756949586758,2.6281651,857.24,855.48,0.71186175]
[1756949586954,2.6281651,857.31,855.49,0.71186175]
[1756949587160,2.6281651,857.31,855.5,0.71186175]
[1756949587354,2.6281651,857.28,855.51,0.71186175]
[1756949587559,2.6281651,857.28,855.52,0.71186175]
[1756949587854,2.6281651,857.28,855.53,0.71186175]
[1756949588059,2.6281651,857.28,855.54,0.71186175]
[1756949588258,2.6281651,857.28,855.55,0.71186175]
[1756949588460,2.6281651,857.25,855.56,0.71186175]
[1756949588755,2.6281651,857.25,855.37,1.212]
[1756949588954,2.6281651,857.25,855.38,0.7125736]
[1756949589156,2.6281651,857.25,855.39,0.7125736]
[1756949589357,2.6281651,857.25,855.4,0.7125736]
[1756949589558,2.6281651,857.22,855.41,0.7125736]
[1756949589755,2.6281651,857.22,855.42,0.7125736]
[1756949589959,2.6281651,857.22,855.43,0.7125736]
[1756949590156,2.6281651,857.22,855.44,0.7125736]
[1756949590455,2.6281651,857.22,855.37,1.212]
[1756949590660,0.20317787,857.36,855.37,1.212]
[1756949590661,2.6281651,857.17,855.38,0.71305678]
[1756949590860,2.6281651,857.17,855.39,0.71305678]
[1756949591156,2.6281651,857.17,855.37,1.212]
[1756949591157,2.6281651,857.15,855.4,0.71305678]
[1756949591360,2.6281651,857.15,855.41,0.71305678]
[1756949591558,2.6281651,857.15,855.37,1.212]
[1756949591559,2.6281651,857.15,855.42,0.71305678]
[1756949591762,2.6281651,857.25,855.43,0.71305678]
[1756949591955,2.6281651,857.25,855.44,0.71305678]
[1756949592167,2.6281651,857.23,855.45,0.71305678]
[1756949592457,2.6281651,857.23,855.46,0.71305678]
[1756949592657,2.6281651,857.23,855.37,1.212]
[1756949592658,2.6281651,857.23,855.47,0.71305678]
[1756949592957,2.6281651,857.23,855.48,0.71305678]
[1756949593157,2.6281651,857.22,855.49,0.71305678]
[1756949593358,2.6281651,857.22,855.5,0.71305678]
[1756949593561,2.6281651,857.22,855.51,0.71305678]
[1756949593860,2.6281651,857.16,855.52,0.71305678]
[1756949594161,2.6281651,857.16,855.53,0.71305678]
[1756949594360,2.6281651,857.16,855.54,0.71305678]
[1756949594560,2.6281651,857.16,855.55,0.71305678]
[1756949594760,2.6281651,857.13,855.56,0.71305678]
[1756949594958,2.6281651,857.13,855.57,0.71305678]
[1756949595157,2.6281651,857.13,855.58,0.71605081]
[1756949595360,2.6281651,857.12,855.55,1.346]
[1756949595556,2.6281651,857.12,855.56,0.71607358]
[1756949595857,2.6281651,857.06,855.57,0.71607358]
[1756949596061,2.6281651,857.06,855.58,0.71616178]
[1756949596361,2.6281651,857.05,855.55,1.346]
[1756949596557,2.6281651,857.05,855.56,0.71618367]
[1756949596759,2.6281651,857.05,855.57,0.71618367]
[1756949597060,2.6281651,857.05,855.58,0.71618367]
[1756949597257,2.6281651,857.05,855.59,0.71618367]
[1756949597462,2.6281651,857.05,855.55,1.346]
[1756949597661,2.6281651,857.05,855.56,0.71630251]
[1756949597862,2.6281651,857.05,855.57,0.71630251]
[1756949598057,2.6281651,857.05,855.58,0.71630251]
[1756949598258,2.6281651,857.05,855.59,0.71630251]
[1756949598560,2.6281651,857.03,855.55,1.346]
[1756949598758,2.6281651,857.03,855.56,0.71643253]
[1756949598962,2.6281651,857.03,855.57,0.71643253]
[1756949599163,2.6281651,857.03,855.58,0.71643253]
[1756949599360,2.6281651,857.02,855.59,0.71643253]
[1756949599559,2.6281651,857.02,855.6,0.71643253]
[1756949599761,2.6281651,857.02,855.61,0.71657371]
[1756949599961,2.6281651,857.08,855.55,1.346]
[1756949600265,2.6281651,857.08,855.56,0.71670191]
[1756949600463,2.6281651,857.08,855.57,0.71670191]
[1756949600664,2.6281651,857.08,855.58,0.71670191]
[1756949600861,2.6281651,857.08,855.59,0.71670191]
[1756949601066,2.6281651,857.11,855.6,0.71670191]
[1756949601361,2.6281651,857.11,855.61,0.71670191]
[1756949601566,2.6281651,857.05,855.62,0.71670191]
[1756949601764,2.6281651,857.05,855.63,0.71670191]
[1756949601966,2.6281651,857.05,855.59,0.935]
[1756949602166,2.6281651,857.05,855.6,0.71688185]
[1756949602366,2.6281651,857.05,855.61,0.71688185]
[1756949602662,2.6281651,857.03,855.62,0.71688185]
[1756949602864,2.6281651,857.03,855.63,0.71688185]
[1756949603069,2.6281651,857.03,855.64,0.71688185]
[1756949603268,2.6281651,857.03,855.59,0.935]
[1756949603468,2.6281651,857.03,855.6,0.71713827]
[1756949603768,2.6281651,857.02,855.61,0.71713827]
[1756949603966,2.6281651,857.02,855.62,0.71713827]
[1756949604170,2.6281651,857.13,855.63,0.71713827]
[1756949604368,2.6281651,857.13,855.59,0.935]
[1756949604570,2.6281651,857.11,855.6,0.717215]
[1756949604769,2.6281651,857.11,855.61,0.717215]
[1756949604969,2.6281651,857.11,855.62,0.717215]
[1756949605167,0.20317787,857.36,855.59,0.935]
[1756949605168,2.6281651,857.1,855.63,0.717215]
[1756949605370,2.6281651,857.1,855.64,0.717215]
[1756949605567,2.6281651,857.1,855.59,0.935]
[1756949605766,2.6281651,857.1,855.6,0.71728055]
[1756949606072,2.6281651,857.1,855.61,0.71728055]
[1756949606267,0.20317787,857.36,855.62,0.71728055]
[1756949606268,2.6281651,857.17,855.62,0.71728055]
[1756949606466,2.6281651,857.17,855.63,0.71728055]
[1756949606769,2.6281651,857.17,855.64,0.71728055]
[1756949606969,2.6281651,857.17,855.65,0.71728055]
[1756949607167,2.6281651,857.17,855.59,0.935]
[1756949607471,2.6281651,857.16,855.6,0.71738989]
[1756949607672,2.6281651,857.16,855.61,0.71738989]
[1756949607870,2.6281651,857.16,855.62,0.71738989]
[1756949608070,2.6281651,857.16,855.63,0.71738989]
[1756949608268,2.6281651,857.17,855.64,0.71738989]
[1756949608470,2.6281651,857.17,855.65,0.71738989]
[1756949608670,2.6281651,857.17,855.59,0.935]
[1756949608868,2.6281651,857.17,855.6,0.71743245]
[1756949609072,2.6281651,857.17,855.61,0.71743245]
[1756949609268,2.6281651,857.17,855.62,0.71743245]
[1756949609568,2.6281651,857.16,855.63,0.71743245]
[1756949609769,2.6281651,857.16,855.64,0.71743245]
[1756949610073,2.6281651,857.2,855.65,0.71743245]
[1756949610267,2.6281651,857.2,855.66,0.71743245]
[1756949610472,2.6281651,857.19,855.59,0.935]
[1756949610672,2.6281651,857.19,855.6,0.71752554]
[1756949610972,2.6281651,857.19,855.59,0.935]
[1756949610973,2.6281651,857.17,855.61,0.71752554]
[1756949611173,2.6281651,857.17,855.62,0.71752554]
[1756949611373,2.6281651,857.16,855.63,0.71752554]
[1756949611668,2.6281651,857.16,855.64,0.71752554]
[1756949611867,2.6281651,857.22,855.65,0.71752554]
[1756949612072,2.6281651,857.22,855.66,0.71752554]
[1756949612271,2.6281651,857.22,855.67,0.71752554]
[1756949612469,2.6281651,857.22,855.59,0.935]
[1756949612668,2.6281651,857.22,855.6,0.71763169]
[1756949612969,2.6281651,857.22,855.61,0.71763169]
[1756949613269,2.6281651,857.22,855.62,0.71763169]
[1756949613570,2.6281651,857.22,855.63,0.71763169]
[1756949613769,2.6281651,857.22,855.64,0.71763169]
[1756949613969,2.6281651,857.22,855.65,0.71763169]
[1756949614171,2.6281651,857.16,855.66,0.71763169]
[1756949614369,2.6281651,857.16,855.67,0.71763169]
[1756949614571,2.6281651,857.2,855.63,1.003]
[1756949614770,2.6281651,857.2,855.64,0.7176853]
[1756949614972,2.6281651,857.2,855.65,0.7176853]
[1756949615269,2.6281651,857.25,855.66,0.7176853]
[1756949615472,2.6281651,857.25,855.67,0.7176853]
[1756949615768,2.6281651,857.2,855.63,1.003]
[1756949615973,2.6281651,857.2,855.64,0.7177007]
[1756949616168,2.6281651,857.2,855.65,0.7177007]
[1756949616374,2.6281651,857.2,855.66,0.7177007]
[1756949616571,2.6281651,857.2,855.67,0.7177007]
[1756949616774,2.6281651,857.2,855.67,1.09]
[1756949618274,0.20317787,857.36,855.67,1.09]
[1756949631887,0.20317787,857.36,855.68,1.096]
[1756949637590,0.20317787,857.36,855.69,1.2]
[1756949658708,0.20317787,857.36,855.7,1.29]
[1756949681721,0.20317787,857.36,855.69,1.2]
[1756949685125,0.20317787,857.36,855.7,0.883]
[1756949688528,0.20317787,857.36,855.71,1.172]
[1756949706142,2.6077698,856.46,855.71,1.172]
[1756949706443,1.5646616,855.89,855.71,1.172]
[1756949706741,1.5646616,855.9,855.71,1.172]
[1756949707149,2.6077698,856.57,855.71,1.172]
[1756949707446,2.6077698,856.31,855.71,1.172]
[1756949707849,1.5738157,855.73,855.71,1.172]
[1756949708550,2.6077698,856.45,855.71,1.172]
[1756949708846,2.6077698,856.36,855.71,1.172]
[1756949709749,2.6077698,856.37,855.71,1.172]